[Event "Titled Tuesday Blitz March 07 Late 2023"]
[White "Zhigalko, Sergei"]
[Black "Preotu, Razvan"]
[WhiteFideId "13502956"]
[BlackFideId "2613280"]
[WhiteElo "2626"]
[BlackElo "2407"]
[Result "1/2-1/2"]
[Round "06"]
[TimeControl "180+2"]
[Date "2023.03.07"]
[WhiteClock "0:00:06"]
[BlackClock "0:00:03"]

1. e4 {[%clk 0:03:00]}  c5 {[%clk 0:02:58]} 2. Nf3 {[%clk 0:03:01]}  d6 {[%clk 0:02:58]} 3. d4 {[%clk 0:03:01]}  cxd4 {[%clk 0:02:59]} 4. Qxd4 {[%clk 0:03:02]}  Nc6 {[%clk 0:02:59]} 5. Bb5 {[%clk 0:03:02]}  Bd7 {[%clk 0:02:59]} 6. Bxc6 {[%clk 0:03:02]}  Bxc6 {[%clk 0:03:00]} 7. Nc3 {[%clk 0:03:03]}  Nf6 {[%clk 0:03:00]} 8. Bg5 {[%clk 0:03:03]}  e6 {[%clk 0:03:00]} 9. O-O-O {[%clk 0:03:03]}  Be7 {[%clk 0:03:00]} 10. Rhe1 {[%clk 0:03:03]}  O-O {[%clk 0:02:57]} 11. Kb1 {[%clk 0:03:03]}  h6 {[%clk 0:02:54]} 12. Bh4 {[%clk 0:03:03]}  b5 {[%clk 0:02:54]} 13. Bxf6 {[%clk 0:03:04]}  Bxf6 {[%clk 0:02:54]} 14. Qxd6 {[%clk 0:03:04]}  Qb6 {[%clk 0:02:55]} 15. Ne5 {[%clk 0:03:04]}  Bxe5 {[%clk 0:02:52]} 16. Qxe5 {[%clk 0:03:05]}  b4 {[%clk 0:02:52]} 17. Ne2 {[%clk 0:03:05]}  Qxf2 {[%clk 0:02:53]} 18. Nf4 {[%clk 0:03:06]}  Kh8 {[%clk 0:02:38]} 19. Nh5 {[%clk 0:02:44]}  Rg8 {[%clk 0:02:37]} 20. g4 {[%clk 0:01:24]}  Rac8 {[%clk 0:02:26]} 21. Qf4 {[%clk 0:01:06]}  Qxf4 {[%clk 0:02:07]} 22. Nxf4 {[%clk 0:01:05]}  Rgd8 {[%clk 0:02:04]} 23. Nd3 {[%clk 0:00:59]}  Rd4 {[%clk 0:01:39]} 24. Nf2 {[%clk 0:00:53]}  Rc4 {[%clk 0:01:29]} 25. Rd2 {[%clk 0:00:40]}  a5 {[%clk 0:01:29]} 26. b3 {[%clk 0:00:32]}  Rc3 {[%clk 0:01:28]} 27. Nd3 {[%clk 0:00:33]}  Bb5 {[%clk 0:01:14]} 28. Kb2 {[%clk 0:00:20]}  Bxd3 {[%clk 0:00:58]} 29. cxd3 {[%clk 0:00:20]}  e5 {[%clk 0:00:55]} 30. h4 {[%clk 0:00:20]}  Rd8 {[%clk 0:00:53]} 31. Re3 {[%clk 0:00:16]}  Kg8 {[%clk 0:00:42]} 32. Rf3 {[%clk 0:00:10]}  f6 {[%clk 0:00:34]} 33. a3 {[%clk 0:00:09]}  Rd6 {[%clk 0:00:25]} 34. g5 {[%clk 0:00:03]}  fxg5 {[%clk 0:00:22]} 35. hxg5 {[%clk 0:00:04]}  hxg5 {[%clk 0:00:22]} 36. Rg3 {[%clk 0:00:04]}  Rg6 {[%clk 0:00:12]} 37. axb4 {[%clk 0:00:03]}  axb4 {[%clk 0:00:13]} 38. Rf2 {[%clk 0:00:04]}  g4 {[%clk 0:00:11]} 39. Rf5 {[%clk 0:00:04]}  Rgc6 {[%clk 0:00:10]} 40. Rf2 {[%clk 0:00:01]}  Rd6 {[%clk 0:00:07]} 41. Rd2 {[%clk 0:00:02]}  Kf7 {[%clk 0:00:06]} 42. Rf2+ {[%clk 0:00:02]}  Kg8 {[%clk 0:00:06]} 43. Rd2 {[%clk 0:00:02]}  Rd4 {[%clk 0:00:07]} 44. Rxg4 {[%clk 0:00:02]}  Rdxd3 {[%clk 0:00:05]} 45. Rxd3 {[%clk 0:00:02]}  Rxd3 {[%clk 0:00:05]} 46. Rg5 {[%clk 0:00:03]}  Rd2+ {[%clk 0:00:05]} 47. Kc1 {[%clk 0:00:04]}  Re2 {[%clk 0:00:04]} 48. Rxe5 {[%clk 0:00:04]}  Kf7 {[%clk 0:00:04]} 49. Rf5+ {[%clk 0:00:02]}  Ke6 {[%clk 0:00:04]} 50. Rg5 {[%clk 0:00:02]}  Kf6 {[%clk 0:00:05]} 51. Rf5+ {[%clk 0:00:02]}  Kg6 {[%clk 0:00:04]} 52. Re5 {[%clk 0:00:03]}  Kh6 {[%clk 0:00:04]} 53. Kd1 {[%clk 0:00:03]}  Re3 {[%clk 0:00:04]} 54. Kc2 {[%clk 0:00:03]}  g5 {[%clk 0:00:04]} 55. Kd2 {[%clk 0:00:01]}  Rxb3 {[%clk 0:00:04]} 56. Rb5 {[%clk 0:00:02]}  Kg6 {[%clk 0:00:04]} 57. Rb6+ {[%clk 0:00:02]}  Kf7 {[%clk 0:00:04]} 58. Ke2 {[%clk 0:00:02]}  g4 {[%clk 0:00:04]} 59. Kf2 {[%clk 0:00:02]}  Rf3+ {[%clk 0:00:03]} 60. Kg2 {[%clk 0:00:01]}  b3 {[%clk 0:00:04]} 61. e5 {[%clk 0:00:02]}  Rc3 {[%clk 0:00:03]} 62. Kf2 {[%clk 0:00:02]}  Ke7 {[%clk 0:00:04]} 63. Kg2 {[%clk 0:00:02]}  Kd7 {[%clk 0:00:04]} 64. e6+ {[%clk 0:00:03]}  Ke7 {[%clk 0:00:04]} 65. Kf2 {[%clk 0:00:03]}  Rd3 {[%clk 0:00:03]} 66. Kg2 {[%clk 0:00:03]}  Re3 {[%clk 0:00:03]} 67. Kf2 {[%clk 0:00:03]}  Rf3+ {[%clk 0:00:04]} 68. Kg2 {[%clk 0:00:04]}  Rc3 {[%clk 0:00:04]} 69. Kf2 {[%clk 0:00:04]}  Rd3 {[%clk 0:00:05]} 70. Kg2 {[%clk 0:00:05]}  g3 {[%clk 0:00:05]} 71. Kh3 {[%clk 0:00:04]}  Re3 {[%clk 0:00:06]} 72. Kg2 {[%clk 0:00:04]}  Kf6 {[%clk 0:00:06]} 73. Kh3 {[%clk 0:00:04]}  Ke7 {[%clk 0:00:04]} 74. Kg2 {[%clk 0:00:04]}  Kd8 {[%clk 0:00:05]} 75. Kh3 {[%clk 0:00:03]}  Kc7 {[%clk 0:00:05]} 76. Rb4 {[%clk 0:00:03]}  Kc6 {[%clk 0:00:05]} 77. Kg2 {[%clk 0:00:03]}  Kc5 {[%clk 0:00:05]} 78. Rb8 {[%clk 0:00:03]}  Kc4 {[%clk 0:00:06]} 79. Rc8+ {[%clk 0:00:03]}  Kb4 {[%clk 0:00:06]} 80. Rb8+ {[%clk 0:00:03]}  Ka3 {[%clk 0:00:06]} 81. Ra8+ {[%clk 0:00:04]}  Kb2 {[%clk 0:00:06]} 82. Ra6 {[%clk 0:00:04]}  Kb1 {[%clk 0:00:06]} 83. Rb6 {[%clk 0:00:03]}  b2 {[%clk 0:00:06]} 84. Kh3 {[%clk 0:00:02]}  Kc2 {[%clk 0:00:06]} 85. Rc6+ {[%clk 0:00:02]}  Kb1 {[%clk 0:00:03]} 86. Rb6 {[%clk 0:00:02]}  Kc2 {[%clk 0:00:02]} 87. Rc6+ {[%clk 0:00:03]}  Rc3 {[%clk 0:00:02]} 88. Rxc3+ {[%clk 0:00:03]}  Kxc3 {[%clk 0:00:03]} 89. e7 {[%clk 0:00:04]}  b1=Q {[%clk 0:00:03]} 90. e8=Q {[%clk 0:00:04]}  Qf1+ {[%clk 0:00:02]} 91. Kxg3 {[%clk 0:00:04]}  Qd3+ {[%clk 0:00:03]} 92. Kf4 {[%clk 0:00:04]}  Qd4+ {[%clk 0:00:03]} 93. Qe4 {[%clk 0:00:05]}  Qxe4+ {[%clk 0:00:03]} 94. Kxe4 {[%clk 0:00:06]} 1/2-1/2


[Site "https://www.chess.com"]

[Event "Titled Tuesday Blitz March 07 Late 2023"]
[White "Saveliev, Alexei"]
[Black "Yuan, Qingyu"]
[WhiteFideId "24128546"]
[BlackFideId "8609772"]
[WhiteElo "2271"]
[BlackElo "2359"]
[Result "0-1"]
[Round "06"]
[TimeControl "180+2"]
[Date "2023.03.07"]
[WhiteClock "0:00:16"]
[BlackClock "0:00:03"]

1. c4 {[%clk 0:03:00]}  e6 {[%clk 0:03:00]} 2. Nc3 {[%clk 0:03:00]}  d5 {[%clk 0:03:01]} 3. cxd5 {[%clk 0:03:01]}  exd5 {[%clk 0:03:01]} 4. d4 {[%clk 0:03:02]}  c6 {[%clk 0:03:01]} 5. Nf3 {[%clk 0:03:03]}  Bd6 {[%clk 0:03:01]} 6. Qc2 {[%clk 0:03:03]}  Ne7 {[%clk 0:03:00]} 7. Bg5 {[%clk 0:03:03]}  Bf5 {[%clk 0:02:53]} 8. Qxf5 {[%clk 0:02:55]}  Nxf5 {[%clk 0:02:52]} 9. Bxd8 {[%clk 0:02:56]}  Kxd8 {[%clk 0:02:52]} 10. e3 {[%clk 0:02:57]}  Nd7 {[%clk 0:02:50]} 11. Bd3 {[%clk 0:02:57]}  Ne7 {[%clk 0:02:50]} 12. O-O {[%clk 0:02:57]}  Nf6 {[%clk 0:02:46]} 13. Rab1 {[%clk 0:02:57]}  a5 {[%clk 0:02:41]} 14. a3 {[%clk 0:02:57]}  h6 {[%clk 0:02:35]} 15. Rfc1 {[%clk 0:02:53]}  Kd7 {[%clk 0:02:06]} 16. Nd2 {[%clk 0:02:42]}  Rhb8 {[%clk 0:01:54]} 17. f3 {[%clk 0:02:40]}  Ng6 {[%clk 0:01:21]} 18. e4 {[%clk 0:02:36]}  Nf4 {[%clk 0:01:14]} 19. Bf1 {[%clk 0:02:36]}  Be7 {[%clk 0:01:04]} 20. Rd1 {[%clk 0:02:30]}  Ne6 {[%clk 0:00:52]} 21. exd5 {[%clk 0:02:25]}  Nxd5 {[%clk 0:00:51]} 22. Nxd5 {[%clk 0:02:20]}  cxd5 {[%clk 0:00:52]} 23. Bb5+ {[%clk 0:02:18]}  Kd6 {[%clk 0:00:52]} 24. Nb3 {[%clk 0:02:05]}  a4 {[%clk 0:00:52]} 25. Nc1 {[%clk 0:02:02]}  Ra5 {[%clk 0:00:49]} 26. Bf1 {[%clk 0:01:59]}  Rc8 {[%clk 0:00:47]} 27. Ne2 {[%clk 0:01:56]}  Bf6 {[%clk 0:00:39]} 28. Kf2 {[%clk 0:01:55]}  Rb5 {[%clk 0:00:38]} 29. Ke3 {[%clk 0:01:52]}  Rb3+ {[%clk 0:00:33]} 30. Rd3 {[%clk 0:01:52]}  Bg5+ {[%clk 0:00:27]} 31. f4 {[%clk 0:01:52]}  Rxd3+ {[%clk 0:00:26]} 32. Kxd3 {[%clk 0:01:53]}  Nxf4+ {[%clk 0:00:20]} 33. Nxf4 {[%clk 0:01:53]}  Bxf4 {[%clk 0:00:21]} 34. g3 {[%clk 0:01:53]}  Bg5 {[%clk 0:00:21]} 35. Be2 {[%clk 0:01:52]}  Rc6 {[%clk 0:00:17]} 36. Rf1 {[%clk 0:01:51]}  Ke7 {[%clk 0:00:16]} 37. Bh5 {[%clk 0:01:49]}  Bf6 {[%clk 0:00:16]} 38. Bd1 {[%clk 0:01:49]}  Rc4 {[%clk 0:00:16]} 39. Bf3 {[%clk 0:01:37]}  Rxd4+ {[%clk 0:00:16]} 40. Ke3 {[%clk 0:01:37]}  Kd6 {[%clk 0:00:16]} 41. Bh5 {[%clk 0:01:34]}  Re4+ {[%clk 0:00:15]} 42. Kd3 {[%clk 0:01:33]}  Re7 {[%clk 0:00:15]} 43. Rf2 {[%clk 0:01:24]}  b5 {[%clk 0:00:14]} 44. Bd1 {[%clk 0:01:19]}  Be5 {[%clk 0:00:14]} 45. Rd2 {[%clk 0:01:13]}  f5 {[%clk 0:00:13]} 46. Bf3 {[%clk 0:01:12]}  Ke6 {[%clk 0:00:12]} 47. Ke3 {[%clk 0:01:08]}  Rd7 {[%clk 0:00:13]} 48. Be2 {[%clk 0:01:08]}  Rb7 {[%clk 0:00:12]} 49. Bf3 {[%clk 0:01:09]}  Rd7 {[%clk 0:00:11]} 50. Be2 {[%clk 0:01:09]}  d4+ {[%clk 0:00:11]} 51. Kd3 {[%clk 0:01:09]}  g5 {[%clk 0:00:09]} 52. Kc2 {[%clk 0:01:06]}  Rd5 {[%clk 0:00:06]} 53. Bd3 {[%clk 0:01:04]}  f4 {[%clk 0:00:04]} 54. g4 {[%clk 0:01:00]}  Rc5+ {[%clk 0:00:04]} 55. Kd1 {[%clk 0:00:57]}  Kd6 {[%clk 0:00:04]} 56. h3 {[%clk 0:00:57]}  Kc6 {[%clk 0:00:04]} 57. Re2 {[%clk 0:00:55]}  Kb6 {[%clk 0:00:04]} 58. Re1 {[%clk 0:00:51]}  Kc7 {[%clk 0:00:04]} 59. Re2 {[%clk 0:00:51]}  Kd6 {[%clk 0:00:05]} 60. Re1 {[%clk 0:00:52]}  Rc8 {[%clk 0:00:03]} 61. Re2 {[%clk 0:00:51]}  Rb8 {[%clk 0:00:02]} 62. Rc2 {[%clk 0:00:43]}  b4 {[%clk 0:00:02]} 63. axb4 {[%clk 0:00:44]}  Rxb4 {[%clk 0:00:03]} 64. Be4 {[%clk 0:00:39]}  Rb3 {[%clk 0:00:02]} 65. Rc6+ {[%clk 0:00:37]}  Kd7 {[%clk 0:00:03]} 66. Ra6 {[%clk 0:00:36]}  Re3 {[%clk 0:00:03]} 67. Bf5+ {[%clk 0:00:35]}  Kc7 {[%clk 0:00:02]} 68. Rxa4 {[%clk 0:00:35]}  f3 {[%clk 0:00:03]} 69. Kd2 {[%clk 0:00:31]}  f2 {[%clk 0:00:03]} 70. Ra1 {[%clk 0:00:22]}  Bf4 {[%clk 0:00:03]} 71. Bd3 {[%clk 0:00:15]}  Re1+ {[%clk 0:00:03]} 72. Kc2 {[%clk 0:00:16]}  Rxa1 {[%clk 0:00:03]} 0-1


[Site "https://www.chess.com"]

[Event "Titled Tuesday Blitz March 07 Late 2023"]
[White "Holt, Conrad"]
[Black "Oro, Faustino"]
[WhiteFideId "2034387"]
[BlackFideId "20000197"]
[WhiteElo "2592"]
[BlackElo "1984"]
[Result "1/2-1/2"]
[Round "06"]
[TimeControl "180+2"]
[Date "2023.03.07"]
[WhiteClock "0:00:21"]
[BlackClock "0:00:04"]

1. d4 {[%clk 0:03:00]}  Nf6 {[%clk 0:02:59]} 2. c4 {[%clk 0:03:01]}  e6 {[%clk 0:02:59]} 3. Nc3 {[%clk 0:03:01]}  Bb4 {[%clk 0:02:58]} 4. Qc2 {[%clk 0:03:01]}  O-O {[%clk 0:02:58]} 5. e4 {[%clk 0:03:01]}  d5 {[%clk 0:02:54]} 6. e5 {[%clk 0:03:01]}  Ne4 {[%clk 0:02:52]} 7. Bd3 {[%clk 0:03:01]}  Bxc3+ {[%clk 0:02:47]} 8. bxc3 {[%clk 0:03:01]}  f5 {[%clk 0:02:47]} 9. cxd5 {[%clk 0:02:51]}  exd5 {[%clk 0:02:47]} 10. Nh3 {[%clk 0:02:48]}  c5 {[%clk 0:02:23]} 11. f3 {[%clk 0:02:42]}  Qh4+ {[%clk 0:02:21]} 12. Kf1 {[%clk 0:02:35]}  cxd4 {[%clk 0:02:12]} 13. cxd4 {[%clk 0:02:34]}  Nc6 {[%clk 0:02:11]} 14. Be3 {[%clk 0:02:34]}  f4 {[%clk 0:01:54]} 15. Bxe4 {[%clk 0:02:18]}  fxe3 {[%clk 0:01:28]} 16. Bxd5+ {[%clk 0:02:16]}  Kh8 {[%clk 0:01:28]} 17. Qe4 {[%clk 0:01:55]}  Qxe4 {[%clk 0:01:05]} 18. Bxe4 {[%clk 0:01:55]}  Nxd4 {[%clk 0:01:05]} 19. Re1 {[%clk 0:01:55]}  Bxh3 {[%clk 0:01:02]} 20. gxh3 {[%clk 0:01:54]}  Nxf3 {[%clk 0:01:03]} 21. Rxe3 {[%clk 0:01:52]}  Nxe5+ {[%clk 0:00:56]} 22. Kg2 {[%clk 0:01:47]}  Nc4 {[%clk 0:00:56]} 23. Rc3 {[%clk 0:01:45]}  Nd6 {[%clk 0:00:55]} 24. Bf3 {[%clk 0:01:43]}  Rae8 {[%clk 0:00:54]} 25. Rd1 {[%clk 0:01:38]}  Nf5 {[%clk 0:00:51]} 26. Rdd3 {[%clk 0:01:07]}  Re7 {[%clk 0:00:39]} 27. Bg4 {[%clk 0:01:00]}  h6 {[%clk 0:00:35]} 28. Ra3 {[%clk 0:00:55]}  a6 {[%clk 0:00:32]} 29. Rab3 {[%clk 0:00:54]}  Kh7 {[%clk 0:00:22]} 30. a4 {[%clk 0:00:45]}  Nh4+ {[%clk 0:00:16]} 31. Kg3 {[%clk 0:00:45]}  Ng6 {[%clk 0:00:16]} 32. Bf3 {[%clk 0:00:35]}  Ne5 {[%clk 0:00:13]} 33. Be4+ {[%clk 0:00:35]}  Kh8 {[%clk 0:00:13]} 34. Rd4 {[%clk 0:00:33]}  Nc6 {[%clk 0:00:08]} 35. Bxc6 {[%clk 0:00:33]}  bxc6 {[%clk 0:00:09]} 36. Rc4 {[%clk 0:00:30]}  Rf6 {[%clk 0:00:09]} 37. Rb6 {[%clk 0:00:24]}  Re3+ {[%clk 0:00:09]} 38. Kg4 {[%clk 0:00:24]}  a5 {[%clk 0:00:06]} 39. Ra6 {[%clk 0:00:22]}  Re5 {[%clk 0:00:04]} 40. h4 {[%clk 0:00:19]}  h5+ {[%clk 0:00:04]} 41. Kg3 {[%clk 0:00:19]}  Re3+ {[%clk 0:00:04]} 42. Kg2 {[%clk 0:00:19]}  Re2+ {[%clk 0:00:05]} 43. Kg3 {[%clk 0:00:20]}  Re3+ {[%clk 0:00:05]} 44. Kg2 {[%clk 0:00:20]}  Re2+ {[%clk 0:00:04]} 45. Kg3 {[%clk 0:00:21]}  Re3+ {[%clk 0:00:04]} 1/2-1/2


[Site "https://www.chess.com"]

[Event "Titled Tuesday Blitz March 07 Late 2023"]
[White "Derige Kane, Yan"]
[Black "Pulpan, Jakub"]
[WhiteFideId "20665431"]
[BlackFideId "302759"]
[WhiteElo "2149"]
[BlackElo "2484"]
[Result "1-0"]
[Round "06"]
[TimeControl "180+2"]
[Date "2023.03.07"]
[WhiteClock "0:00:06"]
[BlackClock "0:00:04"]

1. d4 {[%clk 0:02:20]}  Nf6 {[%clk 0:02:56]} 2. c4 {[%clk 0:02:19]}  e6 {[%clk 0:02:56]} 3. Nf3 {[%clk 0:02:19]}  d5 {[%clk 0:02:56]} 4. Nc3 {[%clk 0:02:19]}  c5 {[%clk 0:02:56]} 5. cxd5 {[%clk 0:02:18]}  Nxd5 {[%clk 0:02:56]} 6. e4 {[%clk 0:02:16]}  cxd4 {[%clk 0:02:57]} 7. Qxd4 {[%clk 0:02:10]}  Nxc3 {[%clk 0:02:57]} 8. Qxc3 {[%clk 0:02:08]}  Nc6 {[%clk 0:02:57]} 9. Bb5 {[%clk 0:02:07]}  Bd7 {[%clk 0:02:57]} 10. O-O {[%clk 0:02:05]}  Qb6 {[%clk 0:02:58]} 11. Ba4 {[%clk 0:02:02]}  Qa6 {[%clk 0:02:42]} 12. Qc2 {[%clk 0:01:50]}  Be7 {[%clk 0:02:15]} 13. Rd1 {[%clk 0:01:50]}  Rd8 {[%clk 0:02:14]} 14. Bf4 {[%clk 0:01:49]}  O-O {[%clk 0:02:10]} 15. Bc7 {[%clk 0:01:48]}  Nb4 {[%clk 0:02:10]} 16. Qc3 {[%clk 0:01:25]}  Qxa4 {[%clk 0:01:58]} 17. Bxd8 {[%clk 0:01:23]}  Rxd8 {[%clk 0:01:58]} 18. Ne5 {[%clk 0:00:56]}  Bf6 {[%clk 0:01:38]} 19. Qc7 {[%clk 0:00:37]}  Na6 {[%clk 0:01:07]} 20. Qc4 {[%clk 0:00:03]}  Qxc4 {[%clk 0:00:59]} 21. Nxc4 {[%clk 0:00:04]}  Bc6 {[%clk 0:00:59]} 22. e5 {[%clk 0:00:04]}  Be7 {[%clk 0:00:58]} 23. b3 {[%clk 0:00:04]}  Kf8 {[%clk 0:00:58]} 24. a4 {[%clk 0:00:04]}  Nc5 {[%clk 0:00:58]} 25. Rxd8+ {[%clk 0:00:04]}  Bxd8 {[%clk 0:00:58]} 26. Rb1 {[%clk 0:00:05]}  g5 {[%clk 0:00:51]} 27. a5 {[%clk 0:00:05]}  Bc7 {[%clk 0:00:51]} 28. b4 {[%clk 0:00:05]}  Nd3 {[%clk 0:00:49]} 29. b5 {[%clk 0:00:06]}  Bd5 {[%clk 0:00:48]} 30. Nd6 {[%clk 0:00:05]}  Bxd6 {[%clk 0:00:48]} 31. exd6 {[%clk 0:00:06]}  Ke8 {[%clk 0:00:49]} 32. b6 {[%clk 0:00:06]}  a6 {[%clk 0:00:49]} 33. Rd1 {[%clk 0:00:06]}  Ne5 {[%clk 0:00:48]} 34. Rc1 {[%clk 0:00:06]}  Nc6 {[%clk 0:00:49]} 35. Ra1 {[%clk 0:00:05]}  Kd7 {[%clk 0:00:49]} 36. f3 {[%clk 0:00:06]}  Kxd6 {[%clk 0:00:50]} 37. Kf2 {[%clk 0:00:06]}  Kc5 {[%clk 0:00:50]} 38. h4 {[%clk 0:00:06]}  h6 {[%clk 0:00:51]} 39. g4 {[%clk 0:00:05]}  Kd6 {[%clk 0:00:49]} 40. h5 {[%clk 0:00:05]}  Nd4 {[%clk 0:00:48]} 41. Kg3 {[%clk 0:00:04]}  Nxf3 {[%clk 0:00:48]} 42. Rc1 {[%clk 0:00:04]}  Bc6 {[%clk 0:00:48]} 43. Rf1 {[%clk 0:00:02]}  Ke7 {[%clk 0:00:46]} 44. Rd1 {[%clk 0:00:02]}  Ne5 {[%clk 0:00:46]} 45. Rc1 {[%clk 0:00:03]}  Nd3 {[%clk 0:00:45]} 46. Rxc6 {[%clk 0:00:03]}  f5 {[%clk 0:00:06]} 47. Rc7+ {[%clk 0:00:04]}  Kd6 {[%clk 0:00:06]} 48. gxf5 {[%clk 0:00:04]}  exf5 {[%clk 0:00:06]} 49. Rxb7 {[%clk 0:00:05]}  f4+ {[%clk 0:00:07]} 50. Kf3 {[%clk 0:00:05]}  Ne5+ {[%clk 0:00:07]} 51. Kf2 {[%clk 0:00:06]}  Nd7 {[%clk 0:00:03]} 52. Rc7 {[%clk 0:00:05]}  g4 {[%clk 0:00:03]} 53. Rc8 {[%clk 0:00:05]}  Ne5 {[%clk 0:00:02]} 54. b7 {[%clk 0:00:05]}  g3+ {[%clk 0:00:03]} 55. Kg2 {[%clk 0:00:05]}  f3+ {[%clk 0:00:04]} 56. Kxg3 {[%clk 0:00:05]}  Nd7 {[%clk 0:00:04]} 57. Rd8 {[%clk 0:00:05]}  Kc7 {[%clk 0:00:03]} 58. Rxd7+ {[%clk 0:00:06]}  Kb8 {[%clk 0:00:04]} 59. Rd3 {[%clk 0:00:06]}  Ka7 {[%clk 0:00:04]} 60. b8=Q+ {[%clk 0:00:06]} 1-0


[Site "https://www.chess.com"]

[Event "Titled Tuesday Blitz March 07 Late 2023"]
[White "Iliaguev, Nisim"]
[Black "Gubajdullin, Alexei"]
[WhiteFideId "2817276"]
[BlackFideId "4141202"]
[WhiteElo "2241"]
[BlackElo "2267"]
[Result "1/2-1/2"]
[Round "06"]
[TimeControl "180+2"]
[Date "2023.03.07"]
[WhiteClock "0:00:22"]
[BlackClock "0:00:06"]

1. d4 {[%clk 0:03:00]}  Nf6 {[%clk 0:02:59]} 2. Nf3 {[%clk 0:03:00]}  g6 {[%clk 0:02:59]} 3. g3 {[%clk 0:03:01]}  Bg7 {[%clk 0:02:59]} 4. Bg2 {[%clk 0:03:01]}  O-O {[%clk 0:03:00]} 5. O-O {[%clk 0:03:01]}  d6 {[%clk 0:03:00]} 6. c4 {[%clk 0:03:01]}  Nc6 {[%clk 0:03:01]} 7. Nc3 {[%clk 0:03:01]}  a6 {[%clk 0:03:01]} 8. b3 {[%clk 0:03:00]}  Rb8 {[%clk 0:03:01]} 9. Bb2 {[%clk 0:03:01]}  b6 {[%clk 0:03:01]} 10. Rc1 {[%clk 0:03:00]}  e6 {[%clk 0:03:01]} 11. d5 {[%clk 0:03:00]}  exd5 {[%clk 0:03:00]} 12. Nxd5 {[%clk 0:02:59]}  Be6 {[%clk 0:02:53]} 13. Nxf6+ {[%clk 0:02:47]}  Bxf6 {[%clk 0:02:52]} 14. Qd2 {[%clk 0:02:47]}  a5 {[%clk 0:02:46]} 15. h4 {[%clk 0:02:47]}  Ne5 {[%clk 0:02:36]} 16. Nxe5 {[%clk 0:02:46]}  Bxe5 {[%clk 0:02:35]} 17. Bxe5 {[%clk 0:02:45]}  dxe5 {[%clk 0:02:35]} 18. Qc3 {[%clk 0:02:45]}  Qd4 {[%clk 0:02:33]} 19. Qxd4 {[%clk 0:02:41]}  exd4 {[%clk 0:02:33]} 20. c5 {[%clk 0:02:41]}  b5 {[%clk 0:02:29]} 21. Rfd1 {[%clk 0:02:40]}  Rfd8 {[%clk 0:02:27]} 22. Rd2 {[%clk 0:02:41]}  a4 {[%clk 0:02:20]} 23. b4 {[%clk 0:02:39]}  a3 {[%clk 0:02:13]} 24. Rcd1 {[%clk 0:02:39]}  Bc4 {[%clk 0:02:10]} 25. e3 {[%clk 0:02:36]}  d3 {[%clk 0:02:07]} 26. Be4 {[%clk 0:02:35]}  Rd7 {[%clk 0:02:05]} 27. Rc1 {[%clk 0:02:23]}  Rbd8 {[%clk 0:02:04]} 28. Rc3 {[%clk 0:02:22]}  Bxa2 {[%clk 0:01:58]} 29. Rxa3 {[%clk 0:02:21]}  Bc4 {[%clk 0:01:58]} 30. Kf1 {[%clk 0:02:17]}  f5 {[%clk 0:01:56]} 31. Bc6 {[%clk 0:02:13]}  Re7 {[%clk 0:01:56]} 32. Ke1 {[%clk 0:02:13]}  h6 {[%clk 0:01:55]} 33. Ra5 {[%clk 0:02:04]}  Rb8 {[%clk 0:01:53]} 34. Bg2 {[%clk 0:01:53]}  g5 {[%clk 0:01:52]} 35. hxg5 {[%clk 0:01:51]}  hxg5 {[%clk 0:01:50]} 36. Ra3 {[%clk 0:01:44]}  f4 {[%clk 0:01:48]} 37. gxf4 {[%clk 0:01:41]}  gxf4 {[%clk 0:01:48]} 38. Raxd3 {[%clk 0:01:40]}  Bxd3 {[%clk 0:01:45]} 39. Rxd3 {[%clk 0:01:41]}  fxe3 {[%clk 0:01:44]} 40. fxe3 {[%clk 0:01:42]}  Rbe8 {[%clk 0:01:26]} 41. Ke2 {[%clk 0:01:42]}  Kg7 {[%clk 0:01:17]} 42. Bc6 {[%clk 0:01:41]}  Rb8 {[%clk 0:01:15]} 43. Ra3 {[%clk 0:01:39]}  Kf6 {[%clk 0:01:06]} 44. Rd3 {[%clk 0:01:36]}  Rh7 {[%clk 0:01:04]} 45. Rd4 {[%clk 0:01:34]}  Ke5 {[%clk 0:00:48]} 46. Kd3 {[%clk 0:01:32]}  Kf6 {[%clk 0:00:32]} 47. Rf4+ {[%clk 0:01:28]}  Ke5 {[%clk 0:00:29]} 48. Re4+ {[%clk 0:01:25]}  Kf6 {[%clk 0:00:29]} 49. Rd4 {[%clk 0:01:25]}  Re7 {[%clk 0:00:27]} 50. Rd5 {[%clk 0:01:22]}  Re5 {[%clk 0:00:27]} 51. Rd7 {[%clk 0:01:19]}  Re7 {[%clk 0:00:26]} 52. Rd4 {[%clk 0:01:19]}  Re5 {[%clk 0:00:26]} 53. Rh4 {[%clk 0:01:18]}  Re7 {[%clk 0:00:25]} 54. e4 {[%clk 0:01:15]}  Rd8+ {[%clk 0:00:24]} 55. Ke3 {[%clk 0:01:15]}  Rg8 {[%clk 0:00:20]} 56. Bxb5 {[%clk 0:01:09]}  Rb8 {[%clk 0:00:19]} 57. Bd3 {[%clk 0:01:06]}  Rxb4 {[%clk 0:00:19]} 58. Rh6+ {[%clk 0:01:02]}  Kg5 {[%clk 0:00:18]} 59. Rh8 {[%clk 0:01:00]}  Rb3 {[%clk 0:00:18]} 60. Rd8 {[%clk 0:00:56]}  Rc3 {[%clk 0:00:17]} 61. Kd4 {[%clk 0:00:55]}  Rc1 {[%clk 0:00:17]} 62. Kd5 {[%clk 0:00:48]}  Rd1 {[%clk 0:00:16]} 63. Kc6 {[%clk 0:00:49]}  Kf6 {[%clk 0:00:11]} 64. Rd5 {[%clk 0:00:46]}  Kg7 {[%clk 0:00:09]} 65. Bc4 {[%clk 0:00:33]}  Rxd5 {[%clk 0:00:08]} 66. exd5 {[%clk 0:00:34]}  Kf6 {[%clk 0:00:08]} 67. Ba6 {[%clk 0:00:33]}  Ke5 {[%clk 0:00:07]} 68. Bf1 {[%clk 0:00:28]}  Kd4 {[%clk 0:00:07]} 69. Bg2 {[%clk 0:00:27]}  Re5 {[%clk 0:00:07]} 70. Kxc7 {[%clk 0:00:23]}  Kxc5 {[%clk 0:00:06]} 71. d6 {[%clk 0:00:24]}  Re2 {[%clk 0:00:05]} 72. d7 {[%clk 0:00:22]}  Rd2 {[%clk 0:00:06]} 73. d8=Q {[%clk 0:00:22]}  Rxd8 {[%clk 0:00:06]} 74. Kxd8 {[%clk 0:00:22]} 1/2-1/2


[Site "https://www.chess.com"]